[Event "Turkish Second League 2019"]
[Site "Konya"]
[Date "2019.07.23"]
[Round "2"]
[White "Aydemir, Sermin Naz"]
[Black "Kaygisiz, Ilayda"]
[Result "0-1"]
[ECO "A08"]
[WhiteElo "1491"]
[BlackElo "1775"]
[Annotator "NA"]
[PlyCount "140"]
[EventDate "2019.07.22"]
[EventType "team-tourn"]
[EventCountry "TUR"]
[SourceTitle "playchess.com"]
[Source "ChessBase"]
[SourceQuality "1"]
[TimeControl "5400+30"]

1. g3 {[%emt 0:00:30]} d5 {[%emt 0:00:30]} 2. Bg2 {[%emt 0:00:30]} Nf6 {[%emt 0:00:30]} 3. Nf3 {[%emt 0:00:30]} c5 {[%emt 0:00:30]} 4. O-O {[%emt 0:00:30]} g6 {[%emt 0:00:00]} 5. d4 {[%emt 0:00:00]} cxd4 {[%emt 0:00:00]} 6. Nxd4 {[%emt 0:00:00]} Bg7 {[%emt 0:00:30]} 7. Bf4 {[%emt 0:11:30]} O-O {[%emt 0:04:30]} 8. Nc3 {[%emt 0:04:30]} a6 {[%emt 0:03:30]} 9. Qd2 {[%emt 0:17:30]} Re8 {[%emt 0:09:30]} 10. Nf3 {[%emt 0:13:30]} Nc6 {[%emt 0:05:30]} 11. Ne5 {[%emt 0:05:30]} Nh5 {[%emt 0:05:30]} 12. Nxc6 {[%emt 0:15:30]} bxc6 {[%emt 0:00:30]} 13. Bh6 {[%emt 0:00:30]} Bh8 {[%emt 0:00:30]} 14. Bf3 {[%emt 0:04:30]} Ng7 {[%emt 0:01:30]} 15. e4 {[%emt 0:00:30]} d4 {[%emt 0:00:30]} 16. Ne2 {[%emt 0:00:30]} Ne6 {[%emt 0:03:30]} 17. Rad1 {[%emt 0:06:12]} Qb6 {[%emt 0:02:30]} 18. c3 {[%emt 0:01:13]} c5 {[%emt 0:06:30]} 19. Nc1 {[%emt 0:08:03]} Bb7 {[%emt 0:02:30]} 20. Bg2 {[%emt 0:01:40]} Red8 {[%emt 0:04:30]} 21. Qe2 {[%emt 0:02:11]} dxc3 {[%emt 0:01:30]} 22. bxc3 {[%emt 0:01:30]} Bxc3 {[%emt 0:01:30]} 23. f4 {[%emt 0:03:07]} Rxd1 {[%emt 0:03:30]} 24. Rxd1 {[%emt 0:00:13]} Rd8 {[%emt 0:00:30]} 25. Rf1 {[%emt 0:01:34]} Qb2 {[%emt 0:01:30]} 26. Qf3 {[%emt 0:00:03]} f5 {[%emt 0:00:30]} 27. Ne2 {[%emt 0:01:07]} Bd4+ {[%emt 0:08:30]} 28. Nxd4 {[%emt 0:00:10]} Qxd4+ {[%emt 0:01:30]} 29. Qf2 {[%emt 0:00:34]} fxe4 {[%emt 0:01:30]} 30. Qxd4 {[%emt 0:00:52]} cxd4 {[%emt 0:01:30]} 31. f5 {[%emt 0:00:02]} Nc5 {[%emt 0:02:30]} 32. fxg6 {[%emt 0:00:46]} hxg6 {[%emt 0:00:00]} 33. Rc1 {[%emt 0:00:20]} Rd5 {[%emt 0:01:00]} 34. Kf1 {[%emt 0:00:45]} Kh7 {[%emt 0:00:30]} 35. Bd2 {[%emt 0:00:09]} Rf5+ {[%emt 0:01:30]} 36. Kg1 {[%emt 0:00:45]} e3 {[%emt 0:01:30]} 37. Be1 {[%emt 0:00:38]} Bxg2 {[%emt 0:00:30]} 38. Kxg2 {[%emt 0:00:30]} Nd3 {[%emt 0:00:00]} 39. Rd1 {[%emt 0:00:40]} Nxe1+ {[%emt 0:00:00]} 40. Rxe1 {[%emt 0:00:30]} Rf2+ {[%emt 0:00:00]} 41. Kg1 {[%emt 0:00:00]} Rxa2 {[%emt 0:00:00]} 42. h4 {[%emt 0:00:00]} e2 {[%emt 0:00:00]} 43. Kf2 {[%emt 0:00:15]} d3 {[%emt 0:00:00]} 44. Rb1 {[%emt 0:00:00]} e5 {[%emt 0:02:30]} 45. g4 {[%emt 0:01:26]} Ra4 {[%emt 0:02:30]} 46. Ke3 {[%emt 0:01:10]} Rxg4 {[%emt 0:01:30]} 47. Kxd3 {[%emt 0:00:03]} Rxh4 {[%emt 0:00:30]} 48. Kxe2 {[%emt 0:00:02]} Ra4 {[%emt 0:00:30]} 49. Kf3 {[%emt 0:00:11]} Kh6 {[%emt 0:00:30]} 50. Rg1 {[%emt 0:01:10]} Kg7 {[%emt 0:00:30]} 51. Ke3 {[%emt 0:00:25]} a5 {[%emt 0:00:30]} 52. Rc1 {[%emt 0:00:36]} Kf6 {[%emt 0:00:30]} 53. Rf1+ {[%emt 0:00:38]} Ke6 {[%emt 0:00:30]} 54. Rg1 {[%emt 0:00:00]} Kf5 {[%emt 0:00:00]} 55. Rf1+ {[%emt 0:00:00]} Rf4 {[%emt 0:00:00]} 56. Ra1 {[%emt 0:00:24]} a4 {[%emt 0:00:00]} 57. Ra2 {[%emt 0:00:12]} g5 {[%emt 0:00:00]} 58. Rc2 {[%emt 0:00:30]} a3 {[%emt 0:00:30]} 59. Rc8 {[%emt 0:00:55]} Ra4 {[%emt 0:00:00]} 60. Rf8+ {[%emt 0:00:00]} Kg4 {[%emt 0:00:00]} 61. Rf1 {[%emt 0:00:24]} a2 {[%emt 0:00:30]} 62. Ra1 {[%emt 0:00:05]} e4 {[%emt 0:00:00]} 63. Rg1+ {[%emt 0:00:05]} Kf5 {[%emt 0:00:00]} 64. Rf1+ {[%emt 0:00:00]} Ke5 {[%emt 0:00:30]} 65. Ra1 {[%emt 0:00:11]} Ra3+ {[%emt 0:00:30]} 66. Ke2 {[%emt 0:00:00]} g4 {[%emt 0:00:00]} 67. Kf2 {[%emt 0:00:20]} Kf4 {[%emt 0:00:00]} 68. Ke2 {[%emt 0:00:09]} e3 {[%emt 0:00:00]} 69. Rf1+ {[%emt 0:00:30]} Ke4 {[%emt 0:00:00]} 70. Ra1 {[%emt 0:00:00]} g3 {[%emt 0:00:00]} 0-1

[Event "Turkish Second League 2019"]
[Site "Konya"]
[Date "2019.07.23"]
[Round "2"]
[White "Acar, Ilayda"]
[Black "Nesanir, Selin"]
[Result "1/2-1/2"]
[ECO "B34"]
[WhiteElo "1346"]
[BlackElo "1622"]
[Annotator "NA"]
[PlyCount "117"]
[EventDate "2019.07.22"]
[EventType "team-tourn"]
[EventCountry "TUR"]
[SourceTitle "playchess.com"]
[Source "ChessBase"]
[SourceQuality "1"]
[TimeControl "5400+30"]

1. d4 {[%emt 0:00:30]} c5 {[%emt 0:00:30]} 2. Nf3 {[%emt 0:01:30]} cxd4 {[%emt 0:01:30]} 3. Nxd4 {[%emt 0:00:30]} g6 {[%emt 0:00:30]} 4. e4 {[%emt 0:01:30]} Bg7 {[%emt 0:00:30]} 5. Nc3 {[%emt 0:00:30]} Nc6 {[%emt 0:00:30]} 6. Be3 {[%emt 0:02:30]} Nf6 {[%emt 0:00:30]} 7. Be2 {[%emt 0:04:30]} d5 {[%emt 0:02:30]} 8. exd5 {[%emt 0:04:30]} Nxd5 {[%emt 0:04:30]} 9. Nxd5 {[%emt 0:02:30]} Qxd5 {[%emt 0:22:30]} 10. Nb5 {[%emt 0:00:30]} Qe5 {[%emt 0:14:30]} 11. c3 {[%emt 0:06:30]} a6 {[%emt 0:02:30]} 12. Nd4 {[%emt 0:00:30]} Qc7 {[%emt 0:03:30]} 13. Nxc6 {[%emt 0:08:30]} Qxc6 {[%emt 0:01:30]} 14. Bf3 {[%emt 0:00:00]} Qb5 {[%emt 0:01:30]} 15. Qb3 {[%emt 0:01:00]} Qxb3 {[%emt 0:01:30]} 16. axb3 {[%emt 0:00:00]} O-O {[%emt 0:08:30]} 17. O-O {[%emt 0:00:00]} e5 {[%emt 0:03:30]} 18. Rfd1 {[%emt 0:01:30]} Re8 {[%emt 0:00:30]} 19. Bd5 {[%emt 0:03:30]} Rb8 {[%emt 0:09:10]} 20. Ba7 {[%emt 0:00:30]} Ra8 {[%emt 0:00:26]} 21. Bc5 {[%emt 0:00:30]} Bf8 {[%emt 0:00:21]} 22. b4 {[%emt 0:03:30]} Bxc5 {[%emt 0:08:53]} 23. bxc5 {[%emt 0:00:30]} Rb8 {[%emt 0:00:08]} 24. b4 {[%emt 0:00:30]} Be6 {[%emt 0:02:44]} 25. c4 {[%emt 0:00:30]} Kg7 {[%emt 0:03:16]} 26. f3 {[%emt 0:02:30]} Re7 {[%emt 0:03:00]} 27. Bxe6 {[%emt 0:02:30]} Rxe6 {[%emt 0:01:38]} 28. Rd6 {[%emt 0:00:30]} Kf6 {[%emt 0:01:30]} 29. Kf2 {[%emt 0:01:30]} Rc8 {[%emt 0:01:08]} 30. Rad1 {[%emt 0:01:30]} a5 {[%emt 0:01:03]} 31. Rxe6+ {[%emt 0:00:30]} fxe6 {[%emt 0:00:37]} 32. bxa5 {[%emt 0:02:30]} Rxc5 {[%emt 0:00:30]} 33. Rb1 {[%emt 0:00:00]} Rxa5 {[%emt 0:00:28]} 34. Rxb7 {[%emt 0:00:00]} Rc5 {[%emt 0:00:30]} 35. Rb4 {[%emt 0:00:30]} Ke7 {[%emt 0:00:56]} 36. Ke3 {[%emt 0:00:30]} Kd6 {[%emt 0:00:11]} 37. Ke4 {[%emt 0:00:00]} h6 {[%emt 0:00:19]} 38. Rb6+ {[%emt 0:00:00]} Kd7 {[%emt 0:00:31]} 39. Rb4 {[%emt 0:00:30]} Kd6 {[%emt 0:00:40]} 40. Ra4 {[%emt 0:01:30]} Kc6 {[%emt 0:00:29]} 41. Ra6+ {[%emt 0:00:30]} Kd7 {[%emt 0:00:04]} 42. Kd3 {[%emt 0:00:30]} Ke7 {[%emt 0:00:58]} 43. Ra7+ {[%emt 0:00:30]} Kf6 {[%emt 0:00:10]} 44. Ra8 {[%emt 0:00:30]} Ke7 {[%emt 0:00:32]} 45. Rh8 {[%emt 0:00:30]} h5 {[%emt 0:00:03]} 46. h4 {[%emt 0:01:30]} Ra5 {[%emt 0:00:24]} 47. g4 {[%emt 0:00:30]} hxg4 {[%emt 0:00:54]} 48. fxg4 {[%emt 0:00:30]} Ra1 {[%emt 0:00:52]} 49. h5 {[%emt 0:00:30]} gxh5 {[%emt 0:00:09]} 50. Rxh5 {[%emt 0:01:30]} Rg1 {[%emt 0:00:49]} 51. Rh7+ {[%emt 0:02:30]} Kf6 {[%emt 0:00:32]} 52. Rh6+ {[%emt 0:00:30]} Kf7 {[%emt 0:00:13]} 53. Rh5 {[%emt 0:00:30]} Rxg4 {[%emt 0:01:00]} 54. Rxe5 {[%emt 0:00:30]} Ke7 {[%emt 0:00:00]} 55. Re4 {[%emt 0:00:00]} Rxe4 {[%emt 0:01:07]} 56. Kxe4 {[%emt 0:00:00]} Kd6 {[%emt 0:00:00]} 57. c5+ {[%emt 0:00:30]} Kxc5 {[%emt 0:00:24]} 58. Ke5 {[%emt 0:00:00]} Kc6 {[%emt 0:00:32]} 59. Kxe6 {[%emt 0:00:00]} 1/2-1/2

[Event "Turkish Second League 2019"]
[Site "Konya"]
[Date "2019.07.23"]
[Round "3"]
[White "Isik, Alparslan"]
[Black "Boz, Fatih Emre"]
[Result "1-0"]
[ECO "D83"]
[WhiteElo "2293"]
[BlackElo "1854"]
[Annotator "NA"]
[PlyCount "77"]
[EventDate "2019.07.22"]
[EventType "team-tourn"]
[EventCountry "TUR"]
[SourceTitle "playchess.com"]
[Source "ChessBase"]
[SourceQuality "1"]
[TimeControl "5400+30"]

1. d4 {[%emt 0:00:30]} Nf6 {[%emt 0:00:30]} 2. c4 {[%emt 0:00:30]} g6 {[%emt 0:00:30]} 3. Nc3 {[%emt 0:00:30]} d5 {[%emt 0:00:00]} 4. Bf4 {[%emt 0:00:30]} Bg7 {[%emt 0:04:00]} 5. e3 {[%emt 0:00:30]} O-O {[%emt 0:01:30]} 6. Rc1 {[%emt 0:00:30]} Na6 {[%emt 0:14:30]} 7. Nf3 {[%emt 0:03:30]} c6 {[%emt 0:15:30]} 8. cxd5 {[%emt 0:03:30]} Nxd5 {[%emt 0:02:30]} 9. Be5 {[%emt 0:04:30]} Nac7 {[%emt 0:08:30]} 10. Be2 {[%emt 0:02:30]} Nxc3 {[%emt 0:05:30]} 11. bxc3 {[%emt 0:02:30]} Bxe5 {[%emt 0:09:30]} 12. Nxe5 {[%emt 0:00:30]} f6 {[%emt 0:03:30]} 13. Nc4 {[%emt 0:04:30]} Nb5 {[%emt 0:03:30]} 14. h4 {[%emt 0:02:30]} Nd6 {[%emt 0:01:30]} 15. h5 {[%emt 0:01:30]} Be6 {[%emt 0:01:30]} 16. Nxd6 {[%emt 0:03:30]} Qxd6 {[%emt 0:00:30]} 17. Qd2 {[%emt 0:00:30]} g5 {[%emt 0:02:30]} 18. e4 {[%emt 0:01:30]} Kh8 {[%emt 0:02:30]} 19. g3 {[%emt 0:06:30]} Rad8 {[%emt 0:01:30]} 20. O-O {[%emt 0:04:30]} h6 {[%emt 0:06:22]} 21. Rb1 {[%emt 0:01:30]} b6 {[%emt 0:00:43]} 22. a4 {[%emt 0:00:30]} Bg8 {[%emt 0:01:58]} 23. a5 {[%emt 0:03:30]} c5 {[%emt 0:02:27]} 24. axb6 {[%emt 0:02:30]} axb6 {[%emt 0:00:02]} 25. d5 {[%emt 0:02:30]} Bh7 {[%emt 0:02:31]} 26. Bf3 {[%emt 0:03:30]} Rb8 {[%emt 0:01:51]} 27. c4 {[%emt 0:01:30]} f5 {[%emt 0:00:45]} 28. Qc3+ {[%emt 0:02:30]} Kg8 {[%emt 0:03:50]} 29. e5 {[%emt 0:00:30]} Qd7 {[%emt 0:00:23]} 30. Rbd1 {[%emt 0:06:30]} f4 {[%emt 0:03:05]} 31. g4 {[%emt 0:03:30]} Rfd8 {[%emt 0:01:27]} 32. d6 {[%emt 0:01:30]} exd6 {[%emt 0:00:27]} 33. Rxd6 {[%emt 0:03:30]} Qg7 {[%emt 0:00:13]} 34. Qd2 {[%emt 0:03:30]} Re8 {[%emt 0:00:43]} 35. Re1 {[%emt 0:01:30]} Kh8 {[%emt 0:00:38]} 36. Rd7 {[%emt 0:03:30]} Re7 {[%emt 0:00:07]} 37. Rd8+ {[%emt 0:00:00]} Rxd8 {[%emt 0:00:57]} 38. Qxd8+ {[%emt 0:00:00]} Bg8 {[%emt 0:00:00]} 39. Bd5 {[%emt 0:01:30]} 1-0

[Event "Turkish Second League 2019"]
[Site "Konya"]
[Date "2019.07.23"]
[Round "3"]
[White "Lomsadze, Davit"]
[Black "Konduk, Bekir Sami"]
[Result "1-0"]
[ECO "A05"]
[WhiteElo "2292"]
[BlackElo "1951"]
[Annotator "NA"]
[PlyCount "115"]
[EventDate "2019.07.22"]
[EventType "team-tourn"]
[EventCountry "TUR"]
[SourceTitle "playchess.com"]
[Source "ChessBase"]
[SourceQuality "1"]
[TimeControl "5400+30"]

1. Nf3 {[%emt 0:00:30]} Nf6 {[%emt 0:00:30]} 2. g3 {[%emt 0:00:30]} b5 {[%emt 0:00:30]} 3. Bg2 {[%emt 0:00:30]} Bb7 {[%emt 0:00:30]} 4. O-O {[%emt 0:00:30]} d5 {[%emt 0:00:30]} 5. d3 {[%emt 0:00:30]} Nbd7 {[%emt 0:00:30]} 6. Nbd2 {[%emt 0:00:00]} e5 {[%emt 0:00:00]} 7. e4 {[%emt 0:01:00]} Bd6 {[%emt 0:00:00]} 8. exd5 {[%emt 0:00:30]} Bxd5 {[%emt 0:00:30]} 9. Re1 {[%emt 0:03:30]} O-O {[%emt 0:02:30]} 10. b3 {[%emt 0:06:30]} Rb8 {[%emt 0:14:30]} 11. Bb2 {[%emt 0:00:30]} Re8 {[%emt 0:00:30]} 12. h3 {[%emt 0:02:30]} Ba8 {[%emt 0:11:30]} 13. Ne4 {[%emt 0:05:30]} Nxe4 {[%emt 0:07:30]} 14. dxe4 {[%emt 0:00:30]} Nf6 {[%emt 0:00:00]} 15. Nd2 {[%emt 0:03:30]} Bb4 {[%emt 0:03:00]} 16. c3 {[%emt 0:00:30]} Bc5 {[%emt 0:00:30]} 17. Qe2 {[%emt 0:01:30]} Qd6 {[%emt 0:08:30]} 18. Rad1 {[%emt 0:02:30]} Qc6 {[%emt 0:00:30]} 19. b4 {[%emt 0:01:30]} Bf8 {[%emt 0:10:30]} 20. Nb3 {[%emt 0:00:30]} Nd7 {[%emt 0:04:30]} 21. a3 {[%emt 0:02:30]} Nb6 {[%emt 0:02:30]} 22. Na5 {[%emt 0:00:30]} Qe6 {[%emt 0:00:30]} 23. Qxb5 {[%emt 0:00:30]} c5 {[%emt 0:05:30]} 24. Qe2 {[%emt 0:01:30]} c4 {[%emt 0:00:30]} 25. Bc1 {[%emt 0:00:30]} Rbc8 {[%emt 0:02:30]} 26. Be3 {[%emt 0:00:30]} Rc7 {[%emt 0:02:30]} 27. Rd2 {[%emt 0:01:30]} h6 {[%emt 0:02:30]} 28. Qg4 {[%emt 0:01:30]} Qxg4 {[%emt 0:02:08]} 29. hxg4 {[%emt 0:00:00]} Be7 {[%emt 0:00:20]} 30. f3 {[%emt 0:02:00]} Rec8 {[%emt 0:00:40]} 31. Bf1 {[%emt 0:00:30]} Bg5 {[%emt 0:08:07]} 32. Bxg5 {[%emt 0:01:30]} hxg5 {[%emt 0:00:02]} 33. Red1 {[%emt 0:00:00]} Kf8 {[%emt 0:00:11]} 34. Kf2 {[%emt 0:01:00]} Ke7 {[%emt 0:00:06]} 35. Ke3 {[%emt 0:00:30]} f6 {[%emt 0:05:48]} 36. Ra1 {[%emt 0:01:30]} Na4 {[%emt 0:01:11]} 37. Rc1 {[%emt 0:00:30]} Nb6 {[%emt 0:00:01]} 38. Be2 {[%emt 0:00:30]} Rh8 {[%emt 0:00:11]} 39. Bf1 {[%emt 0:00:30]} Rhc8 {[%emt 0:00:08]} 40. b5 {[%emt 0:01:30]} Rc5 {[%emt 0:00:30]} 41. Rb1 {[%emt 0:01:30]} Na4 {[%emt 0:02:11]} 42. Rb4 {[%emt 0:00:00]} Nb6 {[%emt 0:00:36]} 43. a4 {[%emt 0:01:00]} R8c7 {[%emt 0:00:32]} 44. Ra2 {[%emt 0:01:30]} Ke6 {[%emt 0:01:56]} 45. Rh2 {[%emt 0:00:30]} Rc8 {[%emt 0:00:28]} 46. Kd2 {[%emt 0:00:30]} R5c7 {[%emt 0:02:20]} 47. Kc2 {[%emt 0:00:00]} Ke7 {[%emt 0:01:12]} 48. Kb2 {[%emt 0:00:00]} Ke6 {[%emt 0:00:06]} 49. Ka3 {[%emt 0:00:30]} Ke7 {[%emt 0:00:38]} 50. Rbb2 {[%emt 0:00:30]} Ke6 {[%emt 0:01:20]} 51. Kb4 {[%emt 0:00:30]} Ke7 {[%emt 0:00:01]} 52. Be2 {[%emt 0:00:30]} Ke6 {[%emt 0:00:47]} 53. Rb1 {[%emt 0:00:30]} Ke7 {[%emt 0:00:07]} 54. Rbh1 {[%emt 0:00:00]} Kf7 {[%emt 0:01:06]} 55. Rh8 {[%emt 0:00:00]} Ke7 {[%emt 0:00:07]} 56. Rxc8 {[%emt 0:00:00]} Rxc8 {[%emt 0:00:02]} 57. Bxc4 {[%emt 0:00:00]} Rd8 {[%emt 0:01:20]} 58. Bb3 {[%emt 0:01:30]} 1-0

[Event "Turkish Second League 2019"]
[Site "Konya"]
[Date "2019.07.23"]
[Round "3"]
[White "Babayev, Talib"]
[Black "Ozsakallioglu, Okan"]
[Result "1/2-1/2"]
[ECO "B72"]
[WhiteElo "2274"]
[BlackElo "2243"]
[Annotator "NA"]
[PlyCount "98"]
[EventDate "2019.07.22"]
[EventType "team-tourn"]
[EventCountry "TUR"]
[SourceTitle "playchess.com"]
[Source "ChessBase"]
[SourceQuality "1"]
[TimeControl "5400+30"]

1. e4 {[%emt 0:00:30]} c5 {[%emt 0:00:30]} 2. Nf3 {[%emt 0:00:30]} d6 {[%emt 0:00:30]} 3. d4 {[%emt 0:00:30]} cxd4 {[%emt 0:00:30]} 4. Nxd4 {[%emt 0:00:30]} Nf6 {[%emt 0:00:30]} 5. Nc3 {[%emt 0:00:30]} g6 {[%emt 0:00:30]} 6. Be3 {[%emt 0:00:30]} Bg7 {[%emt 0:00:30]} 7. Be2 {[%emt 0:00:30]} O-O {[%emt 0:00:30]} 8. Qd2 {[%emt 0:00:00]} Nc6 {[%emt 0:00:00]} 9. O-O-O {[%emt 0:00:00]} Ng4 {[%emt 0:00:00]} 10. Bxg4 {[%emt 0:00:00]} Bxg4 {[%emt 0:00:00]} 11. f3 {[%emt 0:00:00]} Bd7 {[%emt 0:00:00]} 12. h4 {[%emt 0:00:00]} Ne5 {[%emt 0:00:30]} 13. b3 {[%emt 0:00:00]} b5 {[%emt 0:00:30]} 14. Kb1 {[%emt 0:02:30]} a5 {[%emt 0:01:30]} 15. Bh6 {[%emt 0:02:30]} Bxh6 {[%emt 0:01:30]} 16. Qxh6 {[%emt 0:00:30]} f6 {[%emt 0:00:00]} 17. Ncxb5 {[%emt 0:00:00]} a4 {[%emt 0:00:00]} 18. Nc3 {[%emt 0:01:00]} Qa5 {[%emt 0:11:30]} 19. Qd2 {[%emt 0:03:30]} Rfb8 {[%emt 0:00:30]} 20. Nd5 {[%emt 0:06:30]} Qd8 {[%emt 0:00:30]} 21. Ne3 {[%emt 0:11:30]} Ra7 {[%emt 0:01:30]} 22. b4 {[%emt 0:01:30]} a3 {[%emt 0:00:30]} 23. c3 {[%emt 0:02:30]} Rc7 {[%emt 0:06:30]} 24. Rc1 {[%emt 0:05:30]} Rbc8 {[%emt 0:00:30]} 25. f4 {[%emt 0:03:30]} Nc4 {[%emt 0:00:30]} 26. Nxc4 {[%emt 0:00:30]} Rxc4 {[%emt 0:00:00]} 27. h5 {[%emt 0:00:30]} Qc7 {[%emt 0:02:00]} 28. hxg6 {[%emt 0:01:30]} hxg6 {[%emt 0:02:30]} 29. f5 {[%emt 0:04:30]} Rxc3 {[%emt 0:00:30]} 30. fxg6 {[%emt 0:00:30]} Rxc1+ {[%emt 0:00:30]} 31. Qxc1 {[%emt 0:00:30]} Qxc1+ {[%emt 0:00:30]} 32. Rxc1 {[%emt 0:02:30]} Rb8 {[%emt 0:00:30]} 33. Rc4 {[%emt 0:00:30]} e5 {[%emt 0:00:30]} 34. Nc2 {[%emt 0:00:30]} Be8 {[%emt 0:00:30]} 35. Nxa3 {[%emt 0:22:30]} Bxg6 {[%emt 0:00:30]} 36. Kb2 {[%emt 0:00:00]} Bf7 {[%emt 0:00:00]} 37. Kb3 {[%emt 0:02:00]} Ra8 {[%emt 0:00:00]} 38. Nb5 {[%emt 0:00:30]} Rxa2 {[%emt 0:01:30]} 39. Nxd6 {[%emt 0:00:30]} Bxc4+ {[%emt 0:00:30]} 40. Kxc4 {[%emt 0:00:00]} Kf8 {[%emt 0:00:00]} 41. Kd5 {[%emt 0:04:00]} Ke7 {[%emt 0:00:00]} 42. Nc8+ {[%emt 0:00:30]} Kd8 {[%emt 0:01:30]} 43. Nb6 {[%emt 0:01:30]} Rd2+ {[%emt 0:00:30]} 44. Ke6 {[%emt 0:00:30]} Rd4 {[%emt 0:00:30]} 45. Kf5 {[%emt 0:00:30]} Rd2 {[%emt 0:01:30]} 46. Nd5 {[%emt 0:00:30]} Rf2+ {[%emt 0:01:30]} 47. Ke6 {[%emt 0:00:00]} Rxg2 {[%emt 0:00:30]} 48. Kxf6 {[%emt 0:00:00]} Kd7 {[%emt 0:00:00]} 49. Kxe5 {[%emt 0:00:30]} Rb2 {[%emt 0:00:00]} 1/2-1/2

[Event "Turkish Second League 2019"]
[Site "Konya"]
[Date "2019.07.23"]
[Round "3"]
[White "Temizkan, Denizcan"]
[Black "Degirmenci, Yagiz"]
[Result "1-0"]
[ECO "E16"]
[WhiteElo "2202"]
[BlackElo "1923"]
[Annotator "NA"]
[PlyCount "103"]
[EventDate "2019.07.22"]
[EventType "team-tourn"]
[EventCountry "TUR"]
[SourceTitle "playchess.com"]
[Source "ChessBase"]
[SourceQuality "1"]
[TimeControl "5400+30"]

1. d4 {[%emt 0:00:30]} Nf6 {[%emt 0:00:30]} 2. Nf3 {[%emt 0:00:30]} e6 {[%emt 0:00:30]} 3. c4 {[%emt 0:00:30]} b6 {[%emt 0:00:30]} 4. g3 {[%emt 0:00:30]} Bb7 {[%emt 0:00:30]} 5. Bg2 {[%emt 0:00:30]} Bb4+ {[%emt 0:00:00]} 6. Bd2 {[%emt 0:00:30]} Bxd2+ {[%emt 0:00:00]} 7. Qxd2 {[%emt 0:00:30]} d6 {[%emt 0:01:30]} 8. Nc3 {[%emt 0:00:30]} Nbd7 {[%emt 0:05:30]} 9. O-O {[%emt 0:00:30]} O-O {[%emt 0:00:30]} 10. Rfd1 {[%emt 0:07:30]} Qe7 {[%emt 0:03:30]} 11. b4 {[%emt 0:07:30]} e5 {[%emt 0:17:30]} 12. d5 {[%emt 0:02:30]} Ba6 {[%emt 0:09:30]} 13. Nb5 {[%emt 0:01:30]} Bxb5 {[%emt 0:04:30]} 14. cxb5 {[%emt 0:00:30]} a6 {[%emt 0:01:30]} 15. bxa6 {[%emt 0:07:30]} Rxa6 {[%emt 0:00:30]} 16. Qc2 {[%emt 0:03:30]} Ra7 {[%emt 0:01:30]} 17. Nd2 {[%emt 0:07:30]} Rfa8 {[%emt 0:01:30]} 18. a4 {[%emt 0:00:30]} Nb8 {[%emt 0:05:30]} 19. Nb1 {[%emt 0:02:30]} b5 {[%emt 0:10:30]} 20. a5 {[%emt 0:00:30]} Na6 {[%emt 0:00:30]} 21. Qb3 {[%emt 0:02:30]} Qd7 {[%emt 0:00:30]} 22. h3 {[%emt 0:03:30]} e4 {[%emt 0:01:30]} 23. Nc3 {[%emt 0:15:30]} Re8 {[%emt 0:00:30]} 24. Rac1 {[%emt 0:02:30]} h5 {[%emt 0:01:30]} 25. Rd4 {[%emt 0:10:30]} c5 {[%emt 0:06:30]} 26. dxc6 {[%emt 0:04:30]} Qxc6 {[%emt 0:00:30]} 27. Rcd1 {[%emt 0:04:53]} Rd7 {[%emt 0:01:30]} 28. f3 {[%emt 0:06:19]} Rc8 {[%emt 0:07:13]} 29. Nxe4 {[%emt 0:00:38]} Nxe4 {[%emt 0:00:49]} 30. Rxe4 {[%emt 0:00:30]} d5 {[%emt 0:01:04]} 31. Red4 {[%emt 0:00:36]} Nc7 {[%emt 0:00:34]} 32. f4 {[%emt 0:00:37]} Qe6 {[%emt 0:01:16]} 33. e4 {[%emt 0:00:35]} Rcd8 {[%emt 0:00:44]} 34. exd5 {[%emt 0:00:45]} Qf6 {[%emt 0:04:00]} 35. R4d3 {[%emt 0:03:07]} Rd6 {[%emt 0:00:51]} 36. Qc3 {[%emt 0:00:26]} Qe7 {[%emt 0:00:18]} 37. Qe5 {[%emt 0:00:56]} Qd7 {[%emt 0:00:45]} 38. Qxh5 {[%emt 0:00:17]} Na6 {[%emt 0:00:11]} 39. Rd4 {[%emt 0:00:26]} Qa7 {[%emt 0:01:30]} 40. Kh2 {[%emt 0:00:07]} Re8 {[%emt 0:00:28]} 41. Qf3 {[%emt 0:00:20]} Qc7 {[%emt 0:00:57]} 42. Re4 {[%emt 0:00:19]} Red8 {[%emt 0:00:27]} 43. Qe2 {[%emt 0:01:04]} Qc3 {[%emt 0:00:44]} 44. Re8+ {[%emt 0:00:49]} Rxe8 {[%emt 0:00:07]} 45. Qxe8+ {[%emt 0:00:30]} Kh7 {[%emt 0:00:05]} 46. Be4+ {[%emt 0:00:17]} Rg6 {[%emt 0:01:50]} 47. Bxg6+ {[%emt 0:00:31]} fxg6 {[%emt 0:00:04]} 48. Qe2 {[%emt 0:00:27]} Nxb4 {[%emt 0:00:07]} 49. d6 {[%emt 0:00:53]} Nc6 {[%emt 0:00:27]} 50. a6 {[%emt 0:00:46]} Nd4 {[%emt 0:01:12]} 51. Qf2 {[%emt 0:01:41]} Ne6 {[%emt 0:01:41]} 52. d7 {[%emt 0:00:08]} 1-0

[Event "Turkish Second League 2019"]
[Site "Konya"]
[Date "2019.07.23"]
[Round "3"]
[White "Kara, Yanki"]
[Black "Buker, Muhittin"]
[Result "1-0"]
[ECO "A30"]
[WhiteElo "2193"]
[BlackElo "2016"]
[Annotator "NA"]
[PlyCount "61"]
[EventDate "2019.07.22"]
[EventType "team-tourn"]
[EventCountry "TUR"]
[SourceTitle "playchess.com"]
[Source "ChessBase"]
[SourceQuality "1"]
[TimeControl "5400+30"]

1. Nf3 {[%emt 0:00:30]} Nf6 {[%emt 0:00:30]} 2. g3 {[%emt 0:00:30]} b6 {[%emt 0:00:30]} 3. Bg2 {[%emt 0:00:30]} Bb7 {[%emt 0:00:30]} 4. O-O {[%emt 0:00:30]} e6 {[%emt 0:00:30]} 5. c4 {[%emt 0:00:00]} c5 {[%emt 0:00:30]} 6. Nc3 {[%emt 0:00:00]} Be7 {[%emt 0:00:30]} 7. d4 {[%emt 0:00:00]} cxd4 {[%emt 0:00:00]} 8. Qxd4 {[%emt 0:00:00]} d6 {[%emt 0:00:00]} 9. b3 {[%emt 0:00:00]} O-O {[%emt 0:00:30]} 10. Bb2 {[%emt 0:00:00]} a6 {[%emt 0:02:30]} 11. Rfd1 {[%emt 0:00:00]} Qc7 {[%emt 0:00:30]} 12. Rac1 {[%emt 0:00:00]} Nc6 {[%emt 0:00:30]} 13. Qd2 {[%emt 0:00:00]} Rac8 {[%emt 0:02:30]} 14. Nd5 {[%emt 0:08:00]} exd5 {[%emt 0:03:30]} 15. cxd5 {[%emt 0:00:00]} Qd7 {[%emt 0:14:30]} 16. dxc6 {[%emt 0:00:00]} Rxc6 {[%emt 0:00:30]} 17. Ne5 {[%emt 0:08:30]} dxe5 {[%emt 0:01:30]} 18. Qxd7 {[%emt 0:00:30]} Nxd7 {[%emt 0:00:30]} 19. Bxc6 {[%emt 0:00:00]} Bxc6 {[%emt 0:01:30]} 20. Rxc6 {[%emt 0:00:00]} Nb8 {[%emt 0:00:30]} 21. Rc7 {[%emt 0:00:30]} Bc5 {[%emt 0:04:30]} 22. Bxe5 {[%emt 0:00:30]} h6 {[%emt 0:00:30]} 23. Rd3 {[%emt 0:02:30]} a5 {[%emt 0:02:30]} 24. Bd6 {[%emt 0:00:00]} Bxd6 {[%emt 0:00:30]} 25. Rxd6 {[%emt 0:00:00]} Na6 {[%emt 0:01:30]} 26. Rcd7 {[%emt 0:00:30]} Nb4 {[%emt 0:12:30]} 27. a4 {[%emt 0:00:00]} Re8 {[%emt 0:10:30]} 28. Rd8 {[%emt 0:00:00]} Kf8 {[%emt 0:05:30]} 29. Rxe8+ {[%emt 0:00:30]} Kxe8 {[%emt 0:00:30]} 30. Rxb6 {[%emt 0:00:00]} Kd7 {[%emt 0:06:30]} 31. Rxb4 {[%emt 0:00:00]} 1-0